Workbook

Sheet Sheet1
A1: Date | B1: StockPrice | C1: CallPrice | D1: PutPrice | E1: Return | H1: =A1 -> Date | I1: =B1 -> StockPrice | J1: =C1 -> CallPrice | K1: PutPrice | N1: Lastdate | O1: =H2+O2 -> 2013-12-31 | Q1: Notes:
A2: 2013-01-01 | B2: 100 | C2: =B2*NORMSDIST((LN(B2/Strike)+(RfRate+Volatility^2/2)*(Maturity-A2)/365)/(Volatility*SQRT((Maturity-A2)/365)))-Strike*EXP(-RfRate*(Maturity-A2)/365)*NORMSDIST((LN(B2/Strike)+(RfRate-Volatility^2/2)*(Maturity-A2)/365)/(Volatility*SQRT((Maturity-A2)/365))) -> 18.81457599 | D2: =C2+Strike*EXP(-RfRate*(Maturity-A2)/365)-B2 -> 13.54740439 | H2: =A2 -> 2013-01-01 | I2: =IF(Lastdate>=$H2,B2,NA()) -> 100 | J2: =IF(Lastdate>=$H2,C2,NA()) -> 18.81457599 | K2: =IF(Lastdate>=$H2,D2,NA()) -> 13.54740439 | N2: Numdays | O2: 364 | Q2: Replace columns A to D with you own data. Column A has dates while columns B to D have time series values.
A3: =A2+1 -> 2013-01-02 | B3: =B2*EXP(E3) -> 101.0671613 | C3: 19.46841081 | D3: 13.14705594 | E3: 0.0106150729 | H3: 2013-01-02 | I3: 101.0671613 | J3: 19.46841081 | K3: 13.14705594 | N3: Maxdays | O3: =COUNT(A:A)-1 -> 364 | Q3: Columns H to K will be calculated based on your data in columns A to D and will be used to create chart.
A4: =A3+1 -> 2013-01-03 | B4: =B3*EXP(E4) -> 99.02386595 | C4: 18.15006031 | D4: 13.88498052 | E4: -0.0204243676 | H4: 2013-01-03 | I4: 99.02386595 | J4: 18.15006031 | K4: 13.88498052 | N4: Strike | O4: 100 | Q4: Cells O1, O2, and O3 are used to create charts. Do not delete them.
A5: 2013-01-04 | B5: 100.4185288 | C5: 19.00189988 | D5: 13.35513874 | E5: 0.01398584918 | H5: 2013-01-04 | I5: 100.4185288 | J5: 19.00189988 | K5: 13.35513874 | N5: Maturity | O5: 2014-01-31
A6: 2013-01-05 | B6: 101.8921815 | C6: 19.92203417 | D6: 12.81460369 | E6: 0.01456846964 | H6: 2013-01-05 | I6: 101.8921815 | J6: 19.92203417 | K6: 12.81460369 | N6: Volatility | O6: 0.4
A7: 2013-01-06 | B7: 102.2147571 | C7: 20.10533433 | D7: 12.68831333 | E7: 0.003160851785 | H7: 2013-01-06 | I7: 102.2147571 | J7: 20.10533433 | K7: 12.68831333 | N7: RfRate | O7: 0.05
A8: 2013-01-07 | B8: 100.7782134 | C8: 19.1525597 | D8: 13.18506929 | E8: -0.01415386626 | H8: 2013-01-07 | I8: 100.7782134 | J8: 19.1525597 | K8: 13.18506929
A9: 2013-01-08 | B9: 99.32269241 | C9: 18.20691068 | D9: 13.70792995 | E9: -0.01454812696 | H9: 2013-01-08 | I9: 99.32269241 | J9: 18.20691068 | K9: 13.70792995
A10: 2013-01-09 | B10: 103.5220321 | C10: 20.88437065 | D10: 12.19904064 | E10: 0.04141039207 | H10: 2013-01-09 | I10: 103.5220321 | J10: 20.88437065 | K10: 12.19904064
A11: 2013-01-10 | B11: 105.2172397 | C11: 21.99238894 | D11: 11.62484357 | E11: 0.01624270165 | H11: 2013-01-10 | I11: 105.2172397 | J11: 21.99238894 | K11: 11.62484357
A12: 2013-01-11 | B12: 108.0868711 | C12: 23.94000625 | D12: 10.71582351 | E12: 0.02690810309 | H12: 2013-01-11 | I12: 108.0868711 | J12: 23.94000625 | K12: 10.71582351
A13: 2013-01-12 | B13: 106.7459727 | C13: 22.98204306 | D13: 11.11175447 | E13: -0.01248334068 | H13: 2013-01-12 | I13: 106.7459727 | J13: 22.98204306 | K13: 11.11175447
A14: 2013-01-13 | B14: 109.1303731 | C14: 24.61974306 | D14: 10.3780516 | E14: 0.02209132642 | H14: 2013-01-13 | I14: 109.1303731 | J14: 24.61974306 | K14: 10.3780516
A15: 2013-01-14 | B15: 111.7492974 | C15: 26.47116673 | D15: 9.623550359 | E15: 0.02371469476 | H15: 2013-01-14 | I15: 111.7492974 | J15: 26.47116673 | K15: 9.623550359
A16: 2013-01-15 | B16: 111.708774 | C16: 26.41429419 | D16: 9.62020234 | E16: -0.0003626935369 | H16: 2013-01-15 | I16: 111.708774 | J16: 26.41429419 | K16: 9.62020234
A17: 2013-01-16 | B17: 112.7526822 | C17: 27.14941587 | D17: 9.324418674 | E17: 0.009301514777 | H17: 2013-01-16 | I17: 112.7526822 | J17: 27.14941587 | K17: 9.324418674
A18: 2013-01-17 | B18: 113.8362433 | C18: 27.92165282 | D18: 9.026099248 | E18: 0.009564185975 | H18: 2013-01-17 | I18: 113.8362433 | J18: 27.92165282 | K18: 9.026099248
A19: 2013-01-18 | B19: 108.9868927 | C19: 24.38162736 | D19: 10.34843083 | E19: -0.04353332864 | H19: 2013-01-18 | I19: 108.9868927 | J19: 24.38162736 | K19: 10.34843083
A20: 2013-01-19 | B20: 108.8241683 | C20: 24.23940301 | D20: 10.38193914 | E20: -0.001494179853 | H20: 2013-01-19 | I20: 108.8241683 | J20: 24.23940301 | K20: 10.38193914
A21: 2013-01-20 | B21: 106.7474575 | C21: 22.76545524 | D21: 10.99771216 | E21: -0.01926760989 | H21: 2013-01-20 | I21: 106.7474575 | J21: 22.76545524 | K21: 10.99771216
A22: 2013-01-21 | B22: 111.2659646 | C22: 25.92814154 | D22: 9.654903214 | E22: 0.04145757778 | H22: 2013-01-21 | I22: 111.2659646 | J22: 25.92814154 | K22: 9.654903214
A23: 2013-01-22 | B23: 113.690272 | C23: 27.67543592 | D23: 8.990903786 | E23: 0.02155442591 | H23: 2013-01-22 | I23: 113.690272 | J23: 27.67543592 | K23: 8.990903786
A24: 2013-01-23 | B24: 114.8552489 | C24: 28.51551224 | D24: 8.679018617 | E24: 0.01019479138 | H24: 2013-01-23 | I24: 114.8552489 | J24: 28.51551224 | K24: 8.679018617
A25: 2013-01-24 | B25: 115.7416486 | C25: 29.15431014 | D25: 8.444433905 | E25: 0.007687910334 | H25: 2013-01-24 | I25: 115.7416486 | J25: 29.15431014 | K25: 8.444433905
A26: 2013-01-25 | B26: 113.8001886 | C26: 27.67373931 | D26: 8.91834202 | E26: -0.01691636107 | H26: 2013-01-25 | I26: 113.8001886 | J26: 27.67373931 | K26: 8.91834202
A27: 2013-01-26 | B27: 112.3383328 | C27: 26.56950106 | D27: 9.28898033 | E27: -0.01292903295 | H27: 2013-01-26 | I27: 112.3383328 | J27: 26.56950106 | K27: 9.28898033
A28: 2013-01-27 | B28: 111.661631 | C28: 26.04866357 | D28: 9.457867092 | E28: -0.006041999165 | H28: 2013-01-27 | I28: 111.661631 | J28: 26.04866357 | K28: 9.457867092
A29: 2013-01-28 | B29: 109.2045702 | C29: 24.25967952 | D29: 10.1389682 | E29: -0.02225023311 | H29: 2013-01-28 | I29: 109.2045702 | J29: 24.25967952 | K29: 10.1389682
A30: 2013-01-29 | B30: 109.8745289 | C30: 24.70751163 | D30: 9.929867639 | E30: 0.006116154712 | H30: 2013-01-29 | I30: 109.8745289 | J30: 24.70751163 | K30: 9.929867639
A31: 2013-01-30 | B31: 111.2539292 | C31: 25.66973194 | D31: 9.525715534 | E31: 0.01247617048 | H31: 2013-01-30 | I31: 111.2539292 | J31: 25.66973194 | K31: 9.525715534
A32: 2013-01-31 | B32: 108.787905 | C32: 23.88233082 | D32: 10.21736828 | E32: -0.02241507825 | H32: 2013-01-31 | I32: 108.787905 | J32: 23.88233082 | K32: 10.21736828
A33: 2013-02-01 | B33: 107.7887678 | C33: 23.15527936 | D33: 10.50248541 | E33: -0.009226702241 | H33: 2013-02-01 | I33: 107.7887678 | J33: 23.15527936 | K33: 10.50248541
A34: 2013-02-02 | B34: 107.3012335 | C34: 22.78925081 | D34: 10.63702436 | E34: -0.004533312784 | H34: 2013-02-02 | I34: 107.3012335 | J34: 22.78925081 | K34: 10.63702436
A35: 2013-02-03 | B35: 108.8319188 | C35: 23.82969855 | D35: 10.15982183 | E35: 0.01416451714 | H35: 2013-02-03 | I35: 108.8319188 | J35: 23.82969855 | K35: 10.15982183
A36: 2013-02-04 | B36: 108.523887 | C36: 23.58528065 | D36: 10.23647258 | E36: -0.002834357905 | H36: 2013-02-04 | I36: 108.523887 | J36: 23.58528065 | K36: 10.23647258
A37: 2013-02-05 | B37: 110.8512018 | C37: 25.21133577 | D37: 9.54825139 | E37: 0.02121847302 | H37: 2013-02-05 | I37: 110.8512018 | J37: 25.21133577 | K37: 9.54825139
A38: 2013-02-06 | B38: 110.6787848 | C38: 25.05926839 | D38: 9.581641456 | E38: -0.001556602927 | H38: 2013-02-06 | I38: 110.6787848 | J38: 25.05926839 | K38: 9.581641456
A39: 2013-02-07 | B39: 107.9434182 | C39: 23.09554943 | D39: 10.36633123 | E39: -0.02502499111 | H39: 2013-02-07 | I39: 107.9434182 | J39: 23.09554943 | K39: 10.36633123
A40: 2013-02-08 | B40: 112.8543705 | C40: 26.58375212 | D40: 8.956625545 | E40: 0.04449104669 | H40: 2013-02-08 | I40: 112.8543705 | J40: 26.58375212 | K40: 8.956625545
A41: 2013-02-09 | B41: 113.2919714 | C41: 26.87773354 | D41: 8.82605177 | E41: 0.003870073362 | H41: 2013-02-09 | I41: 113.2919714 | J41: 26.87773354 | K41: 8.82605177
A42: 2013-02-10 | B42: 117.7206561 | C42: 30.18645279 | D42: 7.719133861 | E42: 0.03834619234 | H42: 2013-02-10 | I42: 117.7206561 | J42: 30.18645279 | K42: 7.719133861
A43: 2013-02-11 | B43: 116.6721134 | C43: 29.35599064 | D43: 7.95026368 | E43: -0.008946945489 | H43: 2013-02-11 | I43: 116.6721134 | J43: 29.35599064 | K43: 7.95026368
A44: 2013-02-12 | B44: 117.7978812 | C44: 30.1893906 | D44: 7.67094688 | E44: 0.009602734031 | H44: 2013-02-12 | I44: 117.7978812 | J44: 30.1893906 | K44: 7.67094688
A45: 2013-02-13 | B45: 114.4534588 | C45: 27.62644445 | D45: 8.46547606 | E45: -0.02880201818 | H45: 2013-02-13 | I45: 114.4534588 | J45: 27.62644445 | K45: 8.46547606
A46: 2013-02-14 | B46: 112.7866233 | C46: 26.36415311 | D46: 8.883074904 | E46: -0.01467052288 | H46: 2013-02-14 | I46: 112.7866233 | J46: 26.36415311 | K46: 8.883074904
A47: 2013-02-15 | B47: 110.1019369 | C47: 24.39205205 | D47: 9.608716617 | E47: -0.02409110786 | H47: 2013-02-15 | I47: 110.1019369 | J47: 24.39205205 | K47: 9.608716617
A48: 2013-02-16 | B48: 110.7838973 | C48: 24.85210224 | D48: 9.399864723 | E48: 0.006174796003 | H48: 2013-02-16 | I48: 110.7838973 | J48: 24.85210224 | K48: 9.399864723
A49: 2013-02-17 | B49: 111.372287 | C49: 25.2479738 | D49: 9.220406586 | E49: 0.005297094048 | H49: 2013-02-17 | I49: 111.372287 | J49: 25.2479738 | K49: 9.220406586
A50: 2013-02-18 | B50: 111.9693326 | C50: 25.65275166 | D50: 9.04120059 | E50: 0.005346492016 | H50: 2013-02-18 | I50: 111.9693326 | J50: 25.65275166 | K50: 9.04120059
A51: 2013-02-19 | B51: 111.0424137 | C51: 24.95271192 | D51: 9.28114345 | E51: -0.008312784797 | H51: 2013-02-19 | I51: 111.0424137 | J51: 24.95271192 | K51: 9.28114345
A52: 2013-02-20 | B52: 111.9063422 | C52: 25.54977361 | D52: 9.027341938 | E52: 0.007750058182 | H52: 2013-02-20 | I52: 111.9063422 | J52: 25.54977361 | K52: 9.027341938
A53: 2013-02-21 | B53: 110.4174525 | C53: 24.44659008 | D53: 9.426115395 | E53: -0.01339408639 | H53: 2013-02-21 | I53: 110.4174525 | J53: 24.44659008 | K53: 9.426115395
A54: 2013-02-22 | B54: 109.2431942 | C54: 23.58285532 | D54: 9.749707873 | E54: -0.01069166892 | H54: 2013-02-22 | I54: 109.2431942 | J54: 23.58285532 | K54: 9.749707873
A55: 2013-02-23 | B55: 110.2129335 | C55: 24.24307017 | D55: 9.453254131 | E55: 0.008837717837 | H55: 2013-02-23 | I55: 110.2129335 | J55: 24.24307017 | K55: 9.453254131
A56: 2013-02-24 | B56: 111.9110746 | C56: 25.4385274 | D56: 8.963642818 | E56: 0.01529032541 | H56: 2013-02-24 | I56: 111.9110746 | J56: 25.4385274 | K56: 8.963642818
A57: 2013-02-25 | B57: 111.5280836 | C57: 25.13172014 | D57: 9.052900985 | E57: -0.003428149783 | H57: 2013-02-25 | I57: 111.5280836 | J57: 25.13172014 | K57: 9.052900985
A58: 2013-02-26 | B58: 110.604499 | C58: 24.43713548 | D58: 9.294977021 | E58: -0.008315663335 | H58: 2013-02-26 | I58: 110.604499 | J58: 24.43713548 | K58: 9.294977021
A59: 2013-02-27 | B59: 111.6096101 | C59: 25.13319475 | D59: 8.999003111 | E59: 0.009046392009 | H59: 2013-02-27 | I59: 111.6096101 | J59: 25.13319475 | K59: 8.999003111
A60: 2013-02-28 | B60: 112.5725983 | C60: 25.80617406 | D60: 8.722073965 | E60: 0.00859117324 | H60: 2013-02-28 | I60: 112.5725983 | J60: 25.80617406 | K60: 8.722073965
A61: 2013-03-01 | B61: 109.6216165 | C61: 23.64959305 | D61: 9.529556198 | E61: -0.02656374525 | H61: 2013-03-01 | I61: 109.6216165 | J61: 23.64959305 | K61: 9.529556198
A62: 2013-03-02 | B62: 109.819191 | C62: 23.76098887 | D62: 9.456460841 | E62: 0.001800709192 | H62: 2013-03-02 | I62: 109.819191 | J62: 23.76098887 | K62: 9.456460841
A63: 2013-03-03 | B63: 110.1138522 | C63: 23.94185324 | D63: 9.355749182 | E63: 0.002679554606 | H63: 2013-03-03 | I63: 110.1138522 | J63: 23.94185324 | K63: 9.355749182
A64: 2013-03-04 | B64: 109.8237823 | C64: 23.70635752 | D64: 9.423410264 | E64: -0.00263774842 | H64: 2013-03-04 | I64: 109.8237823 | J64: 23.70635752 | K64: 9.423410264
A65: 2013-03-05 | B65: 108.712009 | C65: 22.89224021 | D65: 9.734154886 | E65: -0.01017483534 | H65: 2013-03-05 | I65: 108.712009 | J65: 22.89224021 | K65: 9.734154886
A66: 2013-03-06 | B66: 109.3794847 | C66: =B66*NORMSDIST((LN(B66/Strike)+(RfRate+Volatility^2/2)*(Maturity-A66)/365)/(Volatility*SQRT((Maturity-A66)/365)))-Strike*EXP(-RfRate*(Maturity-A66)/365)*NORMSDIST((LN(B66/Strike)+(RfRate-Volatility^2/2)*(Maturity-A66)/365)/(Volatility*SQRT((Maturity-A66)/365))) -> 23.33335153 | D66: =C66+Strike*EXP(-RfRate*(Maturity-A66)/365)-B66 -> 9.520880943 | E66: 0.006121080748 | H66: =A66 -> 2013-03-06 | I66: =IF(Lastdate>=$H66,B66,NA()) -> 109.3794847 | J66: =IF(Lastdate>=$H66,C66,NA()) -> 23.33335153 | K66: =IF(Lastdate>=$H66,D66,NA()) -> 9.520880943
A67: 2013-03-07 | B67: 109.3995923 | C67: 23.31850848 | D67: 9.499022554 | E67: 0.0001838165666 | H67: 2013-03-07 | I67: 109.3995923 | J67: 23.31850848 | K67: 9.499022554
A68: =A67+1 -> 2013-03-08 | B68: =B67*EXP(E68) -> 110.1247178 | C68: 23.80435535 | D68: 9.27283806 | E68: 0.006606357712 | H68: 2013-03-08 | I68: 110.1247178 | J68: 23.80435535 | K68: 9.27283806
A69: 2013-03-09 | B69: 110.5057664 | C69: 24.04750605 | D69: 9.148035981 | E69: 0.003454182794 | H69: 2013-03-09 | I69: 110.5057664 | J69: 24.04750605 | K69: 9.148035981
A70: 2013-03-10 | B70: 110.9095843 | C70: 24.30815427 | D70: 9.017963969 | E70: 0.003647609223 | H70: 2013-03-10 | I70: 110.9095843 | J70: 24.30815427 | K70: 9.017963969
A71: 2013-03-11 | B71: 110.8929581 | C71: 24.26694028 | D71: 9.006475606 | E71: -0.0001499188302 | H71: 2013-03-11 | I71: 110.8929581 | J71: 24.26694028 | K71: 9.006475606
A72: 2013-03-12 | B72: 114.3024448 | C72: 26.73551069 | D72: 8.078660596 | E72: 0.03028256498 | H72: 2013-03-12 | I72: 114.3024448 | J72: 26.73551069 | K72: 8.078660596
A73: 2013-03-13 | B73: 115.0646195 | C73: 27.27667133 | D73: 7.870749546 | E73: 0.006645919574 | H73: 2013-03-13 | I73: 115.0646195 | J73: 27.27667133 | K73: 7.870749546
A74: 2013-03-14 | B74: 115.8350623 | C74: 27.82834878 | D74: 7.665088965 | E74: 0.006673423797 | H74: 2013-03-14 | I74: 115.8350623 | J74: 27.82834878 | K74: 7.665088965
A75: 2013-03-15 | B75: 116.1019807 | C75: 28.00131006 | D75: 7.58423849 | E75: 0.002301646146 | H75: 2013-03-15 | I75: 116.1019807 | J75: 28.00131006 | K75: 7.58423849
A76: 2013-03-16 | B76: 108.7966312 | C76: 22.63055276 | D76: 9.531939133 | E76: -0.0649885784 | H76: 2013-03-16 | I76: 108.7966312 | J76: 22.63055276 | K76: 9.531939133
A77: 2013-03-17 | B77: 106.7754045 | C77: 21.20039717 | D77: 10.13612043 | E77: -0.01875276535 | H77: 2013-03-17 | I77: 106.7754045 | J77: 21.20039717 | K77: 10.13612043
A78: 2013-03-18 | B78: 106.8645792 | C78: 21.23208998 | D78: 10.09175055 | E78: 0.0008348128914 | H78: 2013-03-18 | I78: 106.8645792 | J78: 21.23208998 | K78: 10.09175055
A79: 2013-03-19 | B79: 103.5453196 | C79: 18.97987486 | D79: 11.17190883 | E79: -0.03155303042 | H79: 2013-03-19 | I79: 103.5453196 | J79: 18.97987486 | K79: 11.17190883
A80: 2013-03-20 | B80: 102.7997222 | C80: 18.46575484 | D80: 11.41650183 | E80: -0.007226736945 | H80: 2013-03-20 | I80: 102.7997222 | J80: 18.46575484 | K80: 11.41650183
A81: 2013-03-21 | B81: 105.2729455 | C81: 20.06550496 | D81: 10.55614603 | E81: 0.02377380779 | H81: 2013-03-21 | I81: 105.2729455 | J81: 20.06550496 | K81: 10.55614603
A82: 2013-03-22 | B82: 104.6297068 | C82: 19.60700764 | D82: 10.75400663 | E82: -0.006128943316 | H82: 2013-03-22 | I82: 104.6297068 | J82: 19.60700764 | K82: 10.75400663
A83: 2013-03-23 | B83: 105.3234238 | C83: 20.04053172 | D83: 10.50693472 | E83: 0.006608327328 | H83: 2013-03-23 | I83: 105.3234238 | J83: 20.04053172 | K83: 10.50693472
A84: 2013-03-24 | B84: 102.4060904 | C84: 18.09560108 | D84: 11.49246027 | E84: -0.02808965514 | H84: 2013-03-24 | I84: 102.4060904 | J84: 18.09560108 | K84: 11.49246027
A85: 2013-03-25 | B85: 104.2330051 | C85: 19.25621812 | D85: 10.8392872 | E85: 0.01768263941 | H85: 2013-03-25 | I85: 104.2330051 | J85: 19.25621812 | K85: 10.8392872
A86: 2013-03-26 | B86: 102.6930907 | C86: 18.22194231 | D86: 11.35805219 | E86: -0.01488398884 | H86: 2013-03-26 | I86: 102.6930907 | J86: 18.22194231 | K86: 11.35805219
A87: 2013-03-27 | B87: 106.9209063 | C87: 21.00465987 | D87: 9.926082345 | E87: 0.04034452945 | H87: 2013-03-27 | I87: 106.9209063 | J87: 21.00465987 | K87: 9.926082345
A88: 2013-03-28 | B88: 104.4077296 | C88: 19.28318269 | D88: 10.73091188 | E88: -0.02378565696 | H88: 2013-03-28 | I88: 104.4077296 | J88: 19.28318269 | K88: 10.73091188
A89: 2013-03-29 | B89: 103.0365393 | C89: 18.35591719 | D89: 11.1879684 | E89: -0.01322003449 | H89: 2013-03-29 | I89: 103.0365393 | J89: 18.35591719 | K89: 11.1879684
A90: 2013-03-30 | B90: 98.29930231 | C90: 15.37088922 | D90: 12.95331103 | E90: -0.04706674653 | H90: 2013-03-30 | I90: 98.29930231 | J90: 15.37088922 | K90: 12.95331103
A91: 2013-03-31 | B91: 99.33492734 | C91: 15.96825967 | D91: 12.52819182 | E91: 0.01048031521 | H91: 2013-03-31 | I91: 99.33492734 | J91: 15.96825967 | K91: 12.52819182
A92: 2013-04-01 | B92: 97.50167009 | C92: 14.83931199 | D92: 13.24563858 | E92: -0.01862773778 | H92: 2013-04-01 | I92: 97.50167009 | J92: 14.83931199 | K92: 13.24563858
A93: 2013-04-02 | B93: 97.90774304 | C93: 15.0511656 | D93: 13.06455823 | E93: 0.004156130677 | H93: 2013-04-02 | I93: 97.90774304 | J93: 15.0511656 | K93: 13.06455823
A94: 2013-04-03 | B94: 98.96928715 | C94: 15.65918866 | D94: 12.62417796 | E94: 0.01078393345 | H94: 2013-04-03 | I94: 98.96928715 | J94: 15.65918866 | K94: 12.62417796
A95: 2013-04-04 | B95: 104.8184353 | C95: 19.34731922 | D95: 10.47630292 | E95: 0.05742009491 | H95: 2013-04-04 | I95: 104.8184353 | J95: 19.34731922 | K95: 10.47630292
A96: 2013-04-05 | B96: 102.9518827 | C96: 18.0940187 | D96: 11.10269943 | E96: -0.01796794547 | H96: 2013-04-05 | I96: 102.9518827 | J96: 18.0940187 | K96: 11.10269943
A97: 2013-04-06 | B97: 100.335874 | C97: 16.40867522 | D97: 12.04651079 | E97: -0.02573842237 | H97: 2013-04-06 | I97: 100.335874 | J97: 16.40867522 | K97: 12.04651079
A98: 2013-04-07 | B98: 100.4875162 | C98: 16.47330594 | D98: 11.97264729 | E98: 0.001510204869 | H98: 2013-04-07 | I98: 100.4875162 | J98: 16.47330594 | K98: 11.97264729
A99: 2013-04-08 | B99: 102.001621 | C99: 17.39543273 | D99: 11.39381909 | E99: 0.01495520226 | H99: 2013-04-08 | I99: 102.001621 | J99: 17.39543273 | K99: 11.39381909
A100: 2013-04-09 | B100: 100.6720886 | C100: 16.52903843 | D100: 11.87010881 | E100: -0.01312011806 | H100: 2013-04-09 | I100: 100.6720886 | J100: 16.52903843 | K100: 11.87010881
A101: 2013-04-10 | B101: 101.2818034 | C101: 16.8807648 | D101: 11.62527373 | E101: 0.006038177117 | H101: 2013-04-10 | I101: 101.2818034 | J101: 16.8807648 | K101: 11.62527373
A102: 2013-04-11 | B102: 100.4674138 | C102: 16.34274107 | D102: 11.9147948 | E102: -0.008073330254 | H102: 2013-04-11 | I102: 100.4674138 | J102: 16.34274107 | K102: 11.9147948
A103: 2013-04-12 | B103: 100.8074518 | C103: 16.52443667 | D103: 11.7696094 | E103: 0.003378845306 | H103: 2013-04-12 | I103: 100.8074518 | J103: 16.52443667 | K103: 11.7696094
A104: 2013-04-13 | B104: 102.4057569 | C104: 17.50389308 | D104: 11.16391948 | E104: 0.01573065142 | H104: 2013-04-13 | I104: 102.4057569 | J104: 17.50389308 | K104: 11.16391948
A105: 2013-04-14 | B105: 103.2977876 | C105: 18.04835559 | D105: 10.82951187 | E105: 0.00867302809 | H105: 2013-04-14 | I105: 103.2977876 | J105: 18.04835559 | K105: 10.82951187
A106: 2013-04-15 | B106: 106.696336 | C106: 20.2785625 | D106: 9.674332859 | E106: 0.03237085913 | H106: 2013-04-15 | I106: 106.696336 | J106: 20.2785625 | K106: 9.674332859
A107: 2013-04-16 | B107: 105.9487226 | C107: 19.74123518 | D107: 9.897783095 | E107: -0.007031589981 | H107: 2013-04-16 | I107: 105.9487226 | J107: 19.74123518 | K107: 9.897783095
A108: 2013-04-17 | B108: 104.2484649 | C108: 18.57833015 | D108: 10.44830182 | E108: -0.01617809312 | H108: 2013-04-17 | I108: 104.2484649 | J108: 18.57833015 | K108: 10.44830182
A109: 2013-04-18 | B109: 102.8035406 | C109: 17.60822115 | D109: 10.93628486 | E109: -0.01395734059 | H109: 2013-04-18 | I109: 102.8035406 | J109: 17.60822115 | K109: 10.93628486
A110: 2013-04-19 | B110: 99.7798317 | C110: 15.68174219 | D110: 12.04668444 | E110: -0.02985371865 | H110: 2013-04-19 | I110: 99.7798317 | J110: 15.68174219 | K110: 12.04668444
A111: 2013-04-20 | B111: 96.15553264 | C111: 13.51088152 | D111: 13.51329425 | E111: -0.03699906356 | H111: 2013-04-20 | I111: 96.15553264 | J111: 13.51088152 | K111: 13.51329425
A112: 2013-04-21 | B112: 93.98886189 | C112: 12.2743366 | D112: 14.4565933 | E112: -0.02279072741 | H112: 2013-04-21 | I112: 93.98886189 | J112: 12.2743366 | K112: 14.4565933
A113: 2013-04-22 | B113: 90.43359635 | C113: 10.38793099 | D113: 16.13862827 | E113: -0.0385604454 | H113: 2013-04-22 | I113: 90.43359635 | J113: 10.38793099 | K113: 16.13862827
A114: 2013-04-23 | B114: 93.23740294 | C114: 11.8120858 | D114: 14.77215332 | E114: 0.03053312089 | H114: 2013-04-23 | I114: 93.23740294 | J114: 11.8120858 | K114: 14.77215332
A115: 2013-04-24 | B115: 95.24151926 | C115: 12.8790611 | D115: 13.84819094 | E115: 0.0212670131 | H115: 2013-04-24 | I115: 95.24151926 | J115: 12.8790611 | K115: 13.84819094
A116: 2013-04-25 | B116: 98.69215936 | C116: 14.84507679 | D116: 12.37674697 | E116: 0.03558953083 | H116: 2013-04-25 | I116: 98.69215936 | J116: 14.84507679 | K116: 12.37674697
A117: 2013-04-26 | B117: 96.57593563 | C117: 13.5759174 | D117: 13.23699356 | E117: -0.02167590758 | H117: 2013-04-26 | I117: 96.57593563 | J117: 13.5759174 | K117: 13.23699356
A118: 2013-04-27 | B118: 98.60306014 | C118: 14.73201598 | D118: 12.37915169 | E118: 0.02077270037 | H118: 2013-04-27 | I118: 98.60306014 | J118: 14.73201598 | K118: 12.37915169
A119: 2013-04-28 | B119: 102.4116639 | C119: 17.05222791 | D119: 10.90394576 | E119: 0.03789831395 | H119: 2013-04-28 | I119: 102.4116639 | J119: 17.05222791 | K119: 10.90394576
A120: 2013-04-29 | B120: 104.5568053 | C120: 18.41263108 | D120: 10.13239518 | E120: 0.02072990392 | H120: 2013-04-29 | I120: 104.5568053 | J120: 18.41263108 | K120: 10.13239518
A121: 2013-04-30 | B121: 104.6806471 | C121: 18.46330565 | D121: 10.07241737 | E121: 0.001183744807 | H121: 2013-04-30 | I121: 104.6806471 | J121: 18.46330565 | K121: 10.07241737
A122: 2013-05-01 | B122: 102.3930554 | C122: 16.94799324 | D122: 10.85788799 | E122: -0.02209536789 | H122: 2013-05-01 | I122: 102.3930554 | J122: 16.94799324 | K122: 10.85788799
A123: 2013-05-02 | B123: 98.55092604 | C123: 14.55056267 | D123: 12.31577985 | E123: -0.03824546158 | H123: 2013-05-02 | I123: 98.55092604 | J123: 14.55056267 | K123: 12.31577985
A124: 2013-05-03 | B124: 99.38738709 | C124: 15.02149396 | D124: 11.96344499 | E124: 0.008451784938 | H124: 2013-05-03 | I124: 99.38738709 | J124: 15.02149396 | K124: 11.96344499
A125: 2013-05-04 | B125: 97.10209263 | C125: 13.64127826 | D125: 12.88172045 | E125: -0.0232622888 | H125: 2013-05-04 | I125: 97.10209263 | J125: 13.64127826 | K125: 12.88172045
A126: 2013-05-05 | B126: 95.69699115 | C126: 12.81193416 | D126: 13.47067634 | E126: -0.01457606884 | H126: 2013-05-05 | I126: 95.69699115 | J126: 12.81193416 | K126: 13.47067634
A127: 2013-05-06 | B127: 95.70006543 | C127: 12.78404213 | D127: 13.45291035 | E127: 3.212467535e-05 | H127: 2013-05-06 | I127: 95.70006543 | J127: 12.78404213 | K127: 13.45291035
A128: 2013-05-07 | B128: 94.7324596 | C128: 12.21814835 | D128: 13.86782453 | E128: -0.01016227834 | H128: 2013-05-07 | I128: 94.7324596 | J128: 12.21814835 | K128: 13.86782453
A129: 2013-05-08 | B129: 94.61092199 | C129: 12.12222572 | D129: 13.90664345 | E129: -0.001283780042 | H129: 2013-05-08 | I129: 94.61092199 | J129: 12.12222572 | K129: 13.90664345
A130: 2013-05-09 | B130: 98.13594133 | C130: =B130*NORMSDIST((LN(B130/Strike)+(RfRate+Volatility^2/2)*(Maturity-A130)/365)/(Volatility*SQRT((Maturity-A130)/365)))-Strike*EXP(-RfRate*(Maturity-A130)/365)*NORMSDIST((LN(B130/Strike)+(RfRate-Volatility^2/2)*(Maturity-A130)/365)/(Volatility*SQRT((Maturity-A130)/365))) -> 14.09288891 | D130: =C130+Strike*EXP(-RfRate*(Maturity-A130)/365)-B130 -> 12.36549304 | E130: 0.03658075012 | H130: =A130 -> 2013-05-09 | I130: =IF(Lastdate>=$H130,B130,NA()) -> 98.13594133 | J130: =IF(Lastdate>=$H130,C130,NA()) -> 14.09288891 | K130: =IF(Lastdate>=$H130,D130,NA()) -> 12.36549304
A131: 2013-05-10 | B131: 95.09261313 | C131: 12.3277 | D131: 13.65683988 | E131: -0.03150238216 | H131: 2013-05-10 | I131: 95.09261313 | J131: 12.3277 | K131: 13.65683988
A132: =A131+1 -> 2013-05-11 | B132: =B131*EXP(E132) -> 96.47689852 | C132: 13.0729916 | D132: 13.03105545 | E132: 0.0144522944 | H132: 2013-05-11 | I132: 96.47689852 | J132: 13.0729916 | K132: 13.03105545
A133: 2013-05-12 | B133: 96.76461217 | C133: 13.20674053 | D133: 12.89030191 | E133: 0.002977764551 | H133: 2013-05-12 | I133: 96.76461217 | J133: 13.20674053 | K133: 12.89030191
A134: 2013-05-13 | B134: 98.45507715 | C134: 14.1587153 | D134: 12.16502468 | E134: 0.01731902393 | H134: 2013-05-13 | I134: 98.45507715 | J134: 14.1587153 | K134: 12.16502468
A135: 2013-05-14 | B135: 98.54021894 | C135: 14.17830382 | D135: 12.11268621 | E135: 0.0008644043102 | H135: 2013-05-14 | I135: 98.54021894 | J135: 14.17830382 | K135: 12.11268621
A136: 2013-05-15 | B136: 101.3059323 | C136: 15.82719782 | D136: 11.00908342 | E136: 0.02768019257 | H136: 2013-05-15 | I136: 101.3059323 | J136: 15.82719782 | K136: 11.00908342
A137: 2013-05-16 | B137: 103.9436306 | C137: 17.47639568 | D137: 10.03380141 | E137: 0.0257037674 | H137: 2013-05-16 | I137: 103.9436306 | J137: 17.47639568 | K137: 10.03380141
A138: 2013-05-17 | B138: 107.2731835 | C138: 19.66992392 | D138: 8.910996992 | E138: 0.03152995873 | H138: 2013-05-17 | I138: 107.2731835 | J138: 19.66992392 | K138: 8.910996992
A139: 2013-05-18 | B139: 107.5797702 | C139: 19.84824489 | D139: 8.795953288 | E139: 0.002853923183 | H139: 2013-05-18 | I139: 107.5797702 | J139: 19.84824489 | K139: 8.795953288
A140: 2013-05-19 | B140: 107.8303162 | C140: 19.98869565 | D140: 8.699081935 | E140: 0.002326224206 | H140: 2013-05-19 | I140: 107.8303162 | J140: 19.98869565 | K140: 8.699081935
A141: 2013-05-20 | B141: 106.3266824 | C141: 18.92930706 | D141: 9.156552776 | E141: -0.0140425808 | H141: 2013-05-20 | I141: 106.3266824 | J141: 18.92930706 | K141: 9.156552776
A142: 2013-05-21 | B142: 108.7119012 | C142: 20.53648624 | D142: 8.391740593 | E142: 0.02218501085 | H142: 2013-05-21 | I142: 108.7119012 | J142: 20.53648624 | K142: 8.391740593
A143: 2013-05-22 | B143: 107.81891 | C143: 19.88372451 | D143: 8.645199337 | E143: -0.008248214124 | H143: 2013-05-22 | I143: 107.81891 | J143: 19.88372451 | K143: 8.645199337
A144: 2013-05-23 | B144: 105.2686713 | C144: 18.12344081 | D144: 9.448385462 | E144: -0.02393720444 | H144: 2013-05-23 | I144: 105.2686713 | J144: 18.12344081 | K144: 9.448385462
A145: 2013-05-24 | B145: 105.3385456 | C145: 18.13750863 | D145: 9.405811909 | E145: 0.0006635507074 | H145: 2013-05-24 | I145: 105.3385456 | J145: 18.13750863 | K145: 9.405811909
A146: 2013-05-25 | B146: 101.2694826 | C146: 15.48773584 | D146: 10.8383368 | E146: -0.03939429864 | H146: 2013-05-25 | I146: 101.2694826 | J146: 15.48773584 | K146: 10.8383368
A147: 2013-05-26 | B147: 102.903353 | C147: 16.48474262 | D147: 10.2147097 | E147: 0.01600511923 | H147: 2013-05-26 | I147: 102.903353 | J147: 16.48474262 | K147: 10.2147097
A148: 2013-05-27 | B148: 100.9273455 | C148: 15.21211215 | D148: 10.93132514 | E148: -0.01938932143 | H148: 2013-05-27 | I148: 100.9273455 | J148: 15.21211215 | K148: 10.93132514
A149: 2013-05-28 | B149: 101.7195812 | C149: 15.67195158 | D149: 10.61216901 | E149: 0.007818917012 | H149: 2013-05-28 | I149: 101.7195812 | J149: 15.67195158 | K149: 10.61216901
A150: 2013-05-29 | B150: 102.9688431 | C150: 16.42952953 | D150: 10.13372706 | E150: 0.01220662482 | H150: 2013-05-29 | I150: 102.9688431 | J150: 16.42952953 | K150: 10.13372706
A151: 2013-05-30 | B151: 104.4932873 | C151: 17.38397689 | D151: 9.576973952 | E151: 0.01469638524 | H151: 2013-05-30 | I151: 104.4932873 | J151: 17.38397689 | K151: 9.576973952
A152: 2013-05-31 | B152: 103.0430037 | C152: 16.41193599 | D152: 10.06846229 | E152: -0.01397642066 | H152: 2013-05-31 | I152: 103.0430037 | J152: 16.41193599 | K152: 10.06846229
A153: 2013-06-01 | B153: 103.6564633 | C153: 16.77378356 | D153: 9.830097693 | E153: 0.005935781099 | H153: 2013-06-01 | I153: 103.6564633 | J153: 16.77378356 | K153: 9.830097693
A154: 2013-06-02 | B154: 104.096161 | C154: 17.02626022 | D154: 9.656125862 | E154: 0.004232903233 | H154: 2013-06-02 | I154: 104.096161 | J154: 17.02626022 | K154: 9.656125862
A155: 2013-06-03 | B155: 101.6756907 | C155: 15.45031622 | D155: 10.51390319 | E155: -0.02352685175 | H155: 2013-06-03 | I155: 101.6756907 | J155: 15.45031622 | K155: 10.51390319
A156: 2013-06-04 | B156: 104.3976133 | C156: 17.15720342 | D156: 9.512120729 | E156: 0.02641856832 | H156: 2013-06-04 | I156: 104.3976133 | J156: 17.15720342 | K156: 9.512120729
A157: 2013-06-05 | B157: 104.9020036 | C157: 17.45547362 | D157: 9.319255292 | E157: 0.004819801444 | H157: 2013-06-05 | I157: 104.9020036 | J157: 17.45547362 | K157: 9.319255292
A158: 2013-06-06 | B158: 105.2873535 | C158: 17.67727074 | D158: 9.168958987 | E158: 0.003666697034 | H158: 2013-06-06 | I158: 105.2873535 | J158: 17.67727074 | K158: 9.168958987
A159: 2013-06-07 | B159: 100.7579045 | C159: 14.75260496 | D159: 10.78700055 | E159: -0.04397265818 | H159: 2013-06-07 | I159: 100.7579045 | J159: 14.75260496 | K159: 10.78700055
A160: 2013-06-08 | B160: 104.1812116 | C160: 16.883645 | D160: 9.507993581 | E160: 0.03341114821 | H160: 2013-06-08 | I160: 104.1812116 | J160: 16.883645 | K160: 9.507993581
A161: 2013-06-09 | B161: 102.3940387 | C161: 15.70439151 | D161: 10.12917497 | E161: -0.01730330747 | H161: 2013-06-09 | I161: 102.3940387 | J161: 15.70439151 | K161: 10.12917497
A162: 2013-06-10 | B162: 101.505209 | C162: 15.11505454 | D162: 10.44193146 | E162: -0.008718377725 | H162: 2013-06-10 | I162: 101.505209 | J162: 15.11505454 | K162: 10.44193146
A163: 2013-06-11 | B163: 102.5977274 | C163: 15.76696215 | D163: 10.01458617 | E163: 0.01070566588 | H163: 2013-06-11 | I163: 102.5977274 | J163: 15.76696215 | K163: 10.01458617
A164: 2013-06-12 | B164: 105.4463749 | C164: 17.58275572 | D164: 8.994999733 | E164: 0.02738674558 | H164: 2013-06-12 | I164: 105.4463749 | J164: 17.58275572 | K164: 8.994999733
A165: 2013-06-13 | B165: 111.6851324 | C165: 21.89737887 | D165: 7.084134508 | E165: 0.05748106611 | H165: 2013-06-13 | I165: 111.6851324 | J165: 21.89737887 | K165: 7.084134508
A166: 2013-06-14 | B166: 112.7796415 | C166: 22.66573272 | D166: 6.77125034 | E166: 0.009752244911 | H166: 2013-06-14 | I166: 112.7796415 | J166: 22.66573272 | K166: 6.77125034
A167: 2013-06-15 | B167: 112.0554947 | C167: 22.1001883 | D167: 6.943125543 | E167: -0.006441602421 | H167: 2013-06-15 | I167: 112.0554947 | J167: 22.1001883 | K167: 6.943125543
A168: 2013-06-16 | B168: 114.966915 | C168: 24.23387898 | D168: 6.178670563 | E168: 0.02565015457 | H168: 2013-06-16 | I168: 114.966915 | J168: 24.23387898 | K168: 6.178670563
A169: 2013-06-17 | B169: 111.4425638 | C169: 21.58613384 | D169: 7.068553135 | E169: -0.03113505623 | H169: 2013-06-17 | I169: 111.4425638 | J169: 21.58613384 | K169: 7.068553135
A170: 2013-06-18 | B170: 110.7789595 | C170: 21.07277825 | D170: 7.232080155 | E170: -0.005972475239 | H170: 2013-06-18 | I170: 110.7789595 | J170: 21.07277825 | K170: 7.232080155
A171: 2013-06-19 | B171: 113.3435809 | C171: 22.91477293 | D171: 6.52273355 | E171: 0.02288688452 | H171: 2013-06-19 | I171: 113.3435809 | J171: 22.91477293 | K171: 6.52273355
A172: 2013-06-20 | B172: 112.3697282 | C172: 22.16123678 | D172: 6.756332027 | E172: -0.008629165313 | H172: 2013-06-20 | I172: 112.3697282 | J172: 22.16123678 | K172: 6.756332027
A173: 2013-06-21 | B173: 111.991556 | C173: 21.85008901 | D173: 6.836640245 | E173: -0.00337110373 | H173: 2013-06-21 | I173: 111.991556 | J173: 21.85008901 | K173: 6.836640245
A174: 2013-06-22 | B174: 110.7064878 | C174: 20.88429242 | D174: 7.169197416 | E174: -0.01154103036 | H174: 2013-06-22 | I174: 110.7064878 | J174: 20.88429242 | K174: 7.169197416
A175: 2013-06-23 | B175: 115.3004178 | C175: 24.25151684 | D175: 5.955779302 | E175: 0.04065860523 | H175: 2013-06-23 | I175: 115.3004178 | J175: 24.25151684 | K175: 5.955779302
A176: 2013-06-24 | B176: 118.7871766 | C176: 26.92272738 | D176: 5.153520205 | E176: 0.02979240969 | H176: 2013-06-24 | I176: 118.7871766 | J176: 26.92272738 | K176: 5.153520205
A177: 2013-06-25 | B177: 118.8029501 | C177: 26.9018857 | D177: 5.130196134 | E177: 0.0001327785418 | H177: 2013-06-25 | I177: 118.8029501 | J177: 26.9018857 | K177: 5.130196134
A178: 2013-06-26 | B178: 115.3904446 | C178: 24.21840087 | D178: 5.872509628 | E178: -0.02914469054 | H178: 2013-06-26 | I178: 115.3904446 | J178: 24.21840087 | K178: 5.872509628
A179: 2013-06-27 | B179: 114.5073498 | C179: 23.51448024 | D179: 6.064978521 | E179: -0.007682537203 | H179: 2013-06-27 | I179: 114.5073498 | J179: 23.51448024 | K179: 6.064978521
A180: 2013-06-28 | B180: 106.8311529 | C180: 17.96746968 | D180: 8.207461334 | E180: -0.06938943331 | H180: 2013-06-28 | I180: 106.8311529 | J180: 17.96746968 | K180: 8.207461334
A181: 2013-06-29 | B181: 105.0223231 | C181: 16.72274551 | D181: 8.784865248 | E181: -0.01707664888 | H181: 2013-06-29 | I181: 105.0223231 | J181: 16.72274551 | K181: 8.784865248
A182: 2013-06-30 | B182: 100.1157697 | C182: 13.59776078 | D182: 10.57973413 | E182: -0.04784571571 | H182: 2013-06-30 | I182: 100.1157697 | J182: 13.59776078 | K182: 10.57973413
A183: 2013-07-01 | B183: 100.5506212 | C183: 13.82572387 | D183: 10.38614763 | E183: 0.004334081454 | H183: 2013-07-01 | I183: 100.5506212 | J183: 13.82572387 | K183: 10.38614763
A184: 2013-07-02 | B184: 97.89226686 | C184: 12.22830768 | D184: 11.46038961 | E184: -0.02679373837 | H184: 2013-07-02 | I184: 97.89226686 | J184: 12.22830768 | K184: 11.46038961
A185: 2013-07-03 | B185: 98.40300918 | C185: 12.48784583 | D185: 11.22249105 | E185: 0.005203828506 | H185: 2013-07-03 | I185: 98.40300918 | J185: 12.48784583 | K185: 11.22249105
A186: 2013-07-04 | B186: 99.93848129 | C186: 13.35526735 | D186: 10.56774791 | E186: 0.01548342485 | H186: 2013-07-04 | I186: 99.93848129 | J186: 13.35526735 | K186: 10.56774791
A187: 2013-07-05 | B187: 99.80221923 | C187: 13.23983566 | D187: 10.60188754 | E187: -0.001364389656 | H187: 2013-07-05 | I187: 99.80221923 | J187: 13.23983566 | K187: 10.60188754
A188: 2013-07-06 | B188: 103.146434 | C188: 15.26428834 | D188: 9.295436508 | E188: 0.03295924827 | H188: 2013-07-06 | I188: 103.146434 | J188: 15.26428834 | K188: 9.295436508
A189: 2013-07-07 | B189: 102.6823588 | C189: 14.9354345 | D189: 9.443970845 | E189: -0.004509340468 | H189: 2013-07-07 | I189: 102.6823588 | J189: 14.9354345 | K189: 9.443970845
A190: 2013-07-08 | B190: 101.7025891 | C190: 14.28880194 | D190: 9.790422708 | E190: -0.009587567017 | H190: 2013-07-08 | I190: 101.7025891 | J190: 14.28880194 | K190: 9.790422708
A191: 2013-07-09 | B191: 105.4655301 | C191: 16.66566212 | D191: 8.417658413 | E191: 0.03633140995 | H191: 2013-07-09 | I191: 105.4655301 | J191: 16.66566212 | K191: 8.417658413
A192: 2013-07-10 | B192: 105.037829 | C192: 16.34767267 | D192: 8.540688439 | E192: -0.004063609097 | H192: 2013-07-10 | I192: 105.037829 | J192: 16.34767267 | K192: 8.540688439
A193: 2013-07-11 | B193: 103.6798279 | C193: 15.42937142 | D193: 8.99370846 | E193: -0.01301298841 | H193: 2013-07-11 | I193: 103.6798279 | J193: 15.42937142 | K193: 8.99370846
A194: 2013-07-12 | B194: 102.3693787 | C194: =B194*NORMSDIST((LN(B194/Strike)+(RfRate+Volatility^2/2)*(Maturity-A194)/365)/(Volatility*SQRT((Maturity-A194)/365)))-Strike*EXP(-RfRate*(Maturity-A194)/365)*NORMSDIST((LN(B194/Strike)+(RfRate-Volatility^2/2)*(Maturity-A194)/365)/(Volatility*SQRT((Maturity-A194)/365))) -> 14.56325349 | D194: =C194+Strike*EXP(-RfRate*(Maturity-A194)/365)-B194 -> 9.4513618 | E194: -0.01271994137 | H194: =A194 -> 2013-07-12 | I194: =IF(Lastdate>=$H194,B194,NA()) -> 102.3693787 | J194: =IF(Lastdate>=$H194,C194,NA()) -> 14.56325349 | K194: =IF(Lastdate>=$H194,D194,NA()) -> 9.4513618
A195: 2013-07-13 | B195: 104.8591548 | C195: 16.12367422 | D195: 8.535330327 | E195: 0.0240304347 | H195: 2013-07-13 | I195: 104.8591548 | J195: 16.12367422 | K195: 8.535330327
A196: =A195+1 -> 2013-07-14 | B196: =B195*EXP(E196) -> 105.4394854 | C196: 16.47055708 | D196: 8.315208189 | E196: 0.005519124173 | H196: 2013-07-14 | I196: 105.4394854 | J196: 16.47055708 | K196: 8.315208189
A197: 2013-07-15 | B197: 104.8635535 | C197: 16.05512137 | D197: 8.489031962 | E197: -0.005477176341 | H197: 2013-07-15 | I197: 104.8635535 | J197: 16.05512137 | K197: 8.489031962
A198: 2013-07-16 | B198: 106.2332652 | C198: 16.92844614 | D198: 8.005974359 | E198: 0.01297727688 | H198: 2013-07-16 | I198: 106.2332652 | J198: 16.92844614 | K198: 8.005974359
A199: 2013-07-17 | B199: 107.6323608 | C199: 17.84341227 | D199: 7.535176056 | E199: 0.01308406196 | H199: 2013-07-17 | I199: 107.6323608 | J199: 17.84341227 | K199: 7.535176056
A200: 2013-07-18 | B200: 107.0889741 | C200: 17.43536347 | D200: 7.683846881 | E200: -0.005061330372 | H200: 2013-07-18 | I200: 107.0889741 | J200: 17.43536347 | K200: 7.683846881
... 3451 more rows

Sheet Sheet2

Sheet Sheet3
